Cogmind - Beta 14 @@@ ROGUE MODE // 2024.12.19 @ 14:27:41 Player: Adam_the_Great Result: Destroyed by H-61 Shepherd with Heavy Assault Cannon Performance ------------- Evolutions (2) 1000 Regions Visited (4) 800 Robots Destroyed (46) 230 Value Destroyed (1167) 1167 Prototype IDs (0) 0 Alien Tech Used (0) 0 Bonus (0) 0 TOTAL SCORE: 3197 Bonus ------- None Cogmind --------- Core Integrity 0/550 Matter 34/300 Energy 100/100 System Corruption 5% Temperature Cool (0) Movement Core (350) Ox6 Location -8/Materials Parts ------- > --- POWER (1) -------- (None) > --- PROPULSION (3) --- (None) > --- UTILITY (4) ------ Large Storage Unit > --- WEAPON (3) ------- (None) > --- INVENTORY (15) --- Improved Ion Engine Improved Ion Engine Improved Ion Engine Light Deuterium Engine Light Treads Advanced Treads Trap Scanner Visual Processing Unit Hardened Light Armor Plating EM Shotgun Light Assault Rifle Grenade Launcher Peak State ------------ > --- POWER ------------ Improved Ion Engine > --- PROPULSION ------- Aluminum Leg Aluminum Leg Improved Aluminum Leg > --- UTILITY ---------- Large Storage Unit Improved Signal Interpreter Targeting Computer Target Analyzer > --- WEAPON ----------- Small Laser Beam Rifle Assault Cannon > --- INVENTORY -------- Improved Ion Engine Improved Ion Engine Improved Ion Engine Trap Scanner Visual Processing Unit EM Shotgun Light Assault Rifle Grenade Launcher [Rating: 21] Favorites ----------- Power Improved Ion Engine Engine Improved Ion Engine Propulsion Aluminum Leg Treads Light Treads Leg Aluminum Leg Utility Large Storage Unit Device Sensor Array Storage Large Storage Unit Processor Signal Interpreter Protection Light Armor Plating Weapon Light Assault Rifle Energy Gun Medium Laser Ballistic Gun Light Assault Rifle Ballistic Cannon Assault Cannon Launcher Grenade Launcher Build | -11 -10 -9 -9 -8 ------- Run | Yrd Mat Mat Min Mat Slots Evolved 4 | . . 2 . 2 Power . | . . . . . Propulsion 1 | . . 1 . . Utility 2 | . . 1 . 1 Weapon 1 | . . . . 1 Parts Attached 43 | 6 10 8 8 11 Power 7 | 1 3 1 1 1 Engine 7 | 1 3 1 1 1 Core . | . . . . . Reactor . | . . . . . Propulsion 8 | 2 2 2 1 1 Treads 2 | 2 . . . . Leg 6 | . 2 2 1 1 Wheel . | . . . . . Hover . | . . . . . Flight . | . . . . . Utility 12 | 1 3 1 3 4 Device 3 | . 1 . 1 1 Storage 2 | 1 1 . . . Processor 5 | . . 1 2 2 Hackware . | . . . . . Protection 2 | . 1 . . 1 Artifact . | . . . . . Weapon 16 | 2 2 4 3 5 Energy Gun 5 | 1 . . 1 3 Energy Cannon . | . . . . . Ballistic Gun 6 | 1 2 2 1 . Ballistic Cannon 1 | . . . . 1 Launcher 4 | . . 2 1 1 Special Weapon . | . . . . . Impact Weapon . | . . . . . Slashing Weapon . | . . . . . Piercing Weapon . | . . . . . Special Melee Weapon . | . . . . . Unidentified Prototypes . | . . . . . Parts Lost 21 | . 5 . 3 13 Power 3 | . 2 . . 1 Propulsion 5 | . 1 . . 4 Utility 8 | . 1 . 2 5 Weapon 5 | . 1 . 1 3 Highest Loss Streak 9 | . 2 . 2 9 To Critical Strikes . | . . . . . Average Slot Usage (%) 94 | . 94 95 98 83 Engine 11 | . 13 11 11 8 Treads 4 | . 14 . . . Leg 23 | . 12 28 33 19 Device 8 | . 7 11 10 1 Storage 11 | . 14 11 11 9 Processor 9 | . . 11 10 22 Protection 1 | . 3 . . 1 Energy Gun 2 | . 3 . . 9 Ballistic Gun 17 | . 24 19 15 3 Launcher 2 | . . 2 6 . Peak Build Rating 21 | 6 7 13 14 21 Average Rating 10 | 4 6 10 13 18 On Entrance 7 | . 6 7 13 13 Naked Turns . | . . . . . Heaviest Build 38 | 11 29 32 32 38 Greatest Support 40 | 40 40 33 36 36 Greatest Overweight (x) 9 | 2 1 1 . 9 Average Overweight (x) . | . . . . 1 Largest Inventory Capacity 15 | 8 15 15 15 15 Average Capacity 14 | 7 14 15 15 15 Most Carried 14 | 5 8 12 14 13 Average Carried 8 | 2 5 7 10 10 Final Capacity 15 | 8 15 15 15 15 Final Carried 12 | 4 6 12 10 12 Class Distribution -------------------- 93% | Mutant 6% | Gunner Dominant Class ---------------- Mutant | -10/Materials Mutant | -9/Materials Mutant | -9/Mines Mutant | -8/Materials Resources | -11 -10 -9 -9 -8 ----------- Run | Yrd Mat Mat Min Mat Matter Collected 917 | 239 201 169 287 21 Remotely . | . . . . . Salvage Created 1094 | . 383 307 23 381 Parts 82 | . 35 37 . 10 Haulers Intercepted . | . . . . . Recyclers Shooed 2 | . 2 . . . Parts Field Recycled . | . . . . . Retrieved Matter . | . . . . . Parts Self-Destructed . | . . . . . Prevented . | . . . . . Kills | -11 -10 -9 -9 -8 ------- Run | Yrd Mat Mat Min Mat Combat Hostiles Destroyed 37 | . 14 11 3 9 Guns 21 | . 14 2 2 3 Cannons 5 | . . . . 5 AOE 11 | . . 9 1 1 Classes Destroyed 9 | . 4 4 1 . Worker 3 | . . 2 . 1 Builder 2 | . . 2 . . Recycler 1 | . 1 . . . Operator 1 | . . 1 . . Watcher 5 | . 1 3 . 1 Swarmer 12 | . 9 3 . . Grunt 18 | . 5 7 . 6 Sentry 4 | . . 1 . 3 Assembled 3 | . . . 3 . Best Kill Streak 11 | . 4 11 1 6 Combat Bots Only 6 | . 3 6 1 4 Max Kills in Single Turn 3 | . 1 3 1 1 Gunslinging . | . . . . . Exploded 2 | . . 2 1 1 Melee . | . . . . . Uniques/NPCs Destroyed . | . . . . . Combat | -11 -10 -9 -9 -8 -------- Run | Yrd Mat Mat Min Mat Hostile Shots Fired 310 | . 137 29 15 129 Missed 93 | . 36 13 4 40 Damage Taken 3004 | . 965 227 251 1561 Core 807 | . 159 16 80 552 Absorbed by Shields . | . . . . . Core Remaining (%) 70 | 100 36 . 76 . Volleys Fired 163 | . 63 24 53 23 Largest 3 | . 2 2 2 3 Hottest 140 | . 70 50 60 140 Shots Fired 310 | . 123 47 71 69 Gun 259 | . 123 31 64 41 Cannon 23 | . . . . 23 Launcher 28 | . . 16 7 5 Special . | . . . . . Kinetic 226 | . 105 31 60 30 Thermal 56 | . 18 . 4 34 Explosive 28 | . . 16 7 5 Electromagnetic . | . . . . . Robot Hit Streak 11 | . 11 5 4 10 Robot Miss Streak 4 | . 4 2 2 3 Penetration Max . | . . . . . Secondary Targets 4 | . 4 . . . Max Gunslinging Chain 1 | . 1 . . . Shots Hit Robots 159 | . 70 28 17 44 Core Hits 88 | . 28 32 8 20 Critical Kills . | . . . . . Critical Parts Destroyed 1 | . . . . 1 Critical Strikes 6 | . 3 . . 3 Burn 4 | . 3 . . 1 Destroy 1 | . . . . 1 Blast 1 | . . . . 1 Melee Attacks . | . . . . . Impact . | . . . . . Slashing . | . . . . . Piercing . | . . . . . Sneak Attacks . | . . . . . Combat Hostiles . | . . . . . Follow-up Attacks . | . . . . . Damage Inflicted 2659 | . 624 1002 189 844 Guns 1208 | . 624 147 110 327 Cannons 377 | . . . . 377 Explosions 1074 | . . 855 79 140 Melee . | . . . . . Ramming . | . . . . . Kinetic 1165 | . 500 147 98 420 Thermal 420 | . 124 . 12 284 Explosive 1074 | . . 855 79 140 Electromagnetic . | . . . . . Impact . | . . . . . Slashing . | . . . . . Piercing . | . . . . . Highest Corruption 8 | . . 2 8 5 Average Corruption 3 | . . 2 4 4 Corruption Purged . | . . . . . Corruption Blocked . | . . . . . Effects 27 | . . 6 21 . Message Errors 7 | . . 2 5 . Matter Fused 3 | . . . 3 . Heat Flow Errors 2 | . . . 2 . Energy Discharges 6 | . . 3 3 . Data Loss (minor) 5 | . . 1 4 . Data Loss (major) 1 | . . . 1 . Misfires 1 | . . . 1 . Weapon Failures 2 | . . . 2 . Overload Shots . | . . . . . Overflow Damage 7 | . . 3 1 3 Projectiles . | . . . . . Explosions 7 | . . 3 1 3 Melee . | . . . . . Knockbacks 1 | . . . . 1 Impact . | . . . . . Kinetic 1 | . . . . 1 Secondary . | . . . . . Self-Inflicted Damage 202 | . . 50 61 91 Shots 7 | . . 2 3 2 Rammed . | . . . . . Targets Rammed 1 | . 1 . . . Kicked 1 | . 1 . . . Crushed . | . . . . . Highest Temperature 456 | . 300 24 204 456 Average Temperature 131 | . 118 6 59 209 Received Heat Transfer 1053 | . 330 75 . 648 Effects 9 | . 1 . . 8 Shutdowns 2 | . . . . 2 Matter Decay 3 | . . . . 3 Short Circuit 3 | . 1 . . 2 Damage (minor) 1 | . . . . 1 Siege Activations . | . . . . . Robots Corrupted . | . . . . . Combat Hostiles . | . . . . . Parts Fried . | . . . . . Impact Corruptions . | . . . . . Robots Melted . | . . . . . Combat Hostiles . | . . . . . Parts Melted 2 | . 1 . . 1 Heat Transferred 1385 | . 592 . 25 768 Parts Sabotaged . | . . . . . Parts Stolen . | . . . . . Parts Stripped . | . . . . . Power Chain Reactions . | . . . . . Alert | -11 -10 -9 -9 -8 ------- Run | Yrd Mat Mat Min Mat Peak Influence 401 | . 307 386 157 401 Initial 150 | . . 61 150 . Average 119 | . 126 121 70 256 Maximum Alert Level 2 | . 1 1 . 2 Low Security (%) 84 | 100 85 84 100 37 Level 1 15 | . 14 15 . 62 Level 2 . | . . . . . Level 3 . | . . . . . Level 4 . | . . . . . Level 5 . | . . . . . High Security . | . . . . . Max Security . | . . . . . Squads Dispatched 11 | . 3 3 . 5 Investigation 2 | . 1 1 . . Extermination . | . . . . . Reinforcement 6 | . 2 2 . 2 Assault . | . . . . . Garrison 3 | . . . . 3 Intercept . | . . . . . Searches Triggered . | . . . . . Construction Impeded . | . . . . . Haulers Reinforced . | . . . . . Active Scanning Responses . | . . . . . Cargo Convoy Interrupts . | . . . . . Stealth | -11 -10 -9 -9 -8 --------- Run | Yrd Mat Mat Min Mat Distress Signals 5 | . 2 1 1 1 Communications Jammed . | . . . . . Distress Signals . | . . . . . Times Spotted 64 | . 21 20 3 20 Peak Tracking Total 8 | . 8 5 1 7 Tactical Retreats 1 | . . . . 1 Traps | -11 -10 -9 -9 -8 ------- Run | Yrd Mat Mat Min Mat Traps Triggered 1 | . . 1 . . Indirectly . | . . . . . Trap Hack Attempts . | . . . . . Triggered . | . . . . . Disarmed . | . . . . . Reprogrammed . | . . . . . Reused . | . . . . . Traps Extracted . | . . . . . Installed . | . . . . . Triggered . | . . . . . Machines | -11 -10 -9 -9 -8 ---------- Run | Yrd Mat Mat Min Mat Machines Disabled 4 | . . 1 . 3 Max in Single Turn 1 | . . 1 . 1 Machines Repaired . | . . . . . Machines Dismantled . | . . . . . Machines Sabotaged . | . . . . . Overloaded Fab Kills . | . . . . . Hacking | -11 -10 -9 -9 -8 --------- Run | Yrd Mat Mat Min Mat Machines Accessed 3 | . 2 1 . . Terminals 3 | . 2 1 . . Fabricators . | . . . . . Repair Stations . | . . . . . Recycling Units . | . . . . . Scanalyzers . | . . . . . Garrison Access . | . . . . . Total Hacks 12 | . 5 7 . . Successful 5 | . 1 4 . . Failed 7 | . 4 3 . . Catastrophic 1 | . . 1 . . Database Lockouts . | . . . . . Manual . | . . . . . Terminals 12 | . 5 7 . . Fabricators . | . . . . . Repair Stations . | . . . . . Recycling Units . | . . . . . Scanalyzers . | . . . . . Garrison Access . | . . . . . Terminal Hacks 5 | . 1 4 . . Record 4 | . . 4 . . Recall Reinforcements 1 | . 1 . . . Fabricator Hacks . | . . . . . Repair Station Hacks . | . . . . . Recycling Unit Hacks . | . . . . . Scanalyzer . | . . . . . Garrison Access Hacks . | . . . . . Unauthorized Hacks . | . . . . . Terminals . | . . . . . Fabricators . | . . . . . Repair Stations . | . . . . . Recycling Units . | . . . . . Scanalyzers . | . . . . . Garrison Access . | . . . . . Data Cores Recovered . | . . . . . Used . | . . . . . Hacking Detections 2 | . 1 1 . . Full Trace Events 2 | . 1 1 . . Feedback Events . | . . . . . Feedback Blocked . | . . . . . Robot Schematics Acquired . | . . . . . Robots Built . | . . . . . Authchips . | . . . . . Time . | . . . . . Total Robot Build Rating . | . . . . . Part Schematics Acquired . | . . . . . Parts Built . | . . . . . Authchips . | . . . . . Time . | . . . . . Total Part Build Rating . | . . . . . Parts Repaired . | . . . . . Time . | . . . . . Parts Recycled . | . . . . . Recycled Matter . | . . . . . Retrieved Matter . | . . . . . Retrieved Components . | . . . . . Parts Scanalyzed . | . . . . . Part Schematics Acquired . | . . . . . Parts Damaged . | . . . . . Bothacking | -11 -10 -9 -9 -8 ------------ Run | Yrd Mat Mat Min Mat Used RIF Installer . | . . . . . Robots Hacked . | . . . . . Non-combat . | . . . . . Combat . | . . . . . Robot Hacks Applied . | . . . . . Relay Couplers Released . | . . . . . Fabnet Peak Effective % . | . . . . . Robots Rewired . | . . . . . Allies Hacked . | . . . . . Hacks Repelled . | . . . . . Allies | -11 -10 -9 -9 -8 -------- Run | Yrd Mat Mat Min Mat Total Allies . | . . . . . Largest Group . | . . . . . Highest-Rated Group . | . . . . . Highest-Rated Ally . | . . . . . Total Orders . | . . . . . Ally Attacks . | . . . . . Total Damage . | . . . . . Kills . | . . . . . Allies Corrupted . | . . . . . Allies Melted . | . . . . . Intel | -11 -10 -9 -9 -8 ------- Run | Yrd Mat Mat Min Mat Robot Analysis Total . | . . . . . Derelict Logs Recovered 1 | . . . 1 . Drone Launches . | . . . . . Drone Recoveries . | . . . . . Exploration | -11 -10 -9 -9 -8 ------------- Run | Yrd Mat Mat Min Mat Turns Passed 2740 | 123 799 532 908 378 Spaces Moved 1431 | 70 300 283 631 147 Core 15 | 6 . . . 9 Treads 219 | 64 155 . . . Legs 1197 | . 145 283 631 138 Wheels . | . . . . . Hover . | . . . . . Flight . | . . . . . Fastest Speed 50 | 50 160 120 120 120 Average Speed 145 | 154 178 139 120 191 Slowest Speed 500 | 160 240 190 120 500 Overloaded Moves . | . . . . . Propulsion Burnouts . | . . . . . Robots Hopped . | . . . . . Cave-ins Triggered . | . . . . . Exploration Rate (%) 39 | 6 46 30 93 22 Regions Visited 4 Branch Regions 1 Pre-discovered Areas . | . . . . . Known Exits Taken 2 | . . 1 1 . Unknown Exits Taken 2 | 1 1 . . . Scrap Searched 2 | . . . 2 . Spaces Dug . | . . . . . Terrain Destroyed 166 | . . 77 34 55 Melee . | . . . . . Projectile 1 | . . . . 1 AOE 165 | . . 77 34 54 Terrain Rammed . | . . . . . Walls Destroyed . | . . . . . Machines Disabled . | . . . . . Actions | -11 -10 -9 -9 -8 --------- Run | Yrd Mat Mat Min Mat Total 1840 | 85 462 379 721 193 Wait 143 | . 73 50 20 . Move 1427 | 69 299 282 630 147 Hop . | . . . . . Pick Up 48 | 10 12 11 6 9 Fast Attach . | . . . . . Attach 25 | 6 6 3 3 7 Detach 2 | . . 1 . 1 Swap 18 | . 4 5 5 4 Drop 13 | . 4 3 4 2 Fire 163 | . 63 24 53 23 Melee . | . . . . . Ram . | . . . . . Kick 1 | . 1 . . . Crush . | . . . . . Escape Stasis . | . . . . . Rewire . | . . . . . Trap . | . . . . . Miscellaneous . | . . . . . Route ------- -11/Scrapyard -10/Materials -9/Materials -9/Mines (discovered 2 exits: *Mat x2) -8/Materials History --------- Turn | Location | Event 26 | -11/Scrapyard | Discovered new exit (range 16) 124 | -11/Scrapyard | Entered Materials 317 | -10/Materials | Build established: Mutant 443 | -10/Materials | Core integrity fell below 50% 576 | -10/Materials | Discovered new exit (range 10) 923 | -10/Materials | Entered another Materials area 923 | -9/Materials | Evolved 2 slots: Propulsion x1, Utility x1 1330 | -9/Materials | Discovered new exit (range 14) 1454 | -9/Materials | Identified exit to Mines 1455 | -9/Materials | Entered Mines 1465 | -9/Mines | YI-UF0 nonchalantly dropped a Grenade Launcher on the ground 1529 | -9/Mines | Discovered new exit (range 8) 1536 | -9/Mines | Identified exit to Materials 1626 | -9/Mines | Discovered exit to Materials (range 5) 1802 | -9/Mines | Excavation squad dispatched 1802 | -9/Mines | A large section of the Mines collapsed 2153 | -9/Mines | Learned 2 Materials zone layouts 2181 | -9/Mines | Found DCF Scrap (14 items) 2363 | -9/Mines | Entered Materials 2363 | -8/Materials | Evolved 2 slots: Utility x1, Weapon x1 2417 | -8/Materials | Garrison activated, responded to threat 2456 | -8/Materials | Lost 3 parts (1n2u) 2725 | -8/Materials | Core integrity fell below 50% 2734 | -8/Materials | Core integrity fell below 20% 2741 | -8/Materials | Destroyed by H-61 Shepherd with Heavy Assault Cannon Last Messages --------------- 02595_ K-01 Serf collects debris. 02633_ Acquired Hrd. Light Armor Plating. 02679_ Beam Rifle destroyed. 02682_ Acquired Adv. Treads. 02685_ Critical hit (Burn: +37). 02688_ Material Compactor disabled. 02691_ Assault Cannon destroyed. 02693_ Aluminum Leg destroyed. 02703_ Imp. Aluminum Leg destroyed. 02710_ Sml. Laser destroyed. 02727_ Imp. Ion Engine destroyed. 02733_ Targeting Computer destroyed. 02733_ Imp. Signal Interpreter destroyed. 02733_ System corrupted by crushing effect (+2). 02733_ System corrupted by crushing effect (+1). 02734_ G-47 Trooper suffers critical hit (Burn). 02736_ Target Analyzer destroyed. 02736_ System corrupted by crushing effect (+2). 02739_ K-01 Serf collects debris. 02739_ W-25 Informer knocked back. Map ----- +----------------------------------------------------+ | | | | | | | | | | | | | | | | | | | | | | | | | | | | | ????????????????????????????????????############## | | ???????????????????###########??????# # | | ???????????????????# #??????# """ """ # | | ???????????????????# g"" ######## """ """ # | | ???????????????????# """"" + + """ """ # | | ???????????????????# """" ! #### # # | | ???????????????????# " "" #??# ##########+### | | ???????????????????# " " /#??# | | ???????????????????# #??# ########### | | ???????????????????# ] b #??# #?????????###### | | ???????????????????#####Y####### #?????????????# | | ??????????????????????# @ [ #?????????????? | | ????????????????? ###### #?????????????? | | ????????????????## #????####??????????????? | | ?????????????????# #??????????????????????? | | ?????????????????# k#??????????????????????? | | ???????????????? % #??????????????????????? | | ??????????????# t #### #??????????????????????? | | ??????????????# ???# w#??????????????????????? | | ??????????????#+##????# +??????????????????????? | | ??????????????????????# #??????????????????????? | | ??????????????????????# #??????????????????????? | | ??????????????????????# #??????????????????????? | | ??????????????????????# ???????????????????????? | | ??????????????????????# ???????????????????????? | | ??# """ # # #?# H ???????????????????????? | | ??######## + ###? ???????????????????????? | | ?????????# # + ???????????????????????????? | | ?????##### # ###???????????????????????????? | | ?????## # #?#???????????????????????????? | | ?????# ########?#???????????????????????????? | | ?????# #????????????????????????????????????? | | ?????# #????????????????????????????????????? | | ?????# #????????????????????????????????????? | | ?????## #????????????????????????????????????? | | ?????##### #??????###???????????????????????????? | +----------------------------------------------------+ Best States ------------- Heat Dissipation 31 Energy Generation 12 Energy Capacity 265 Matter Stores 300 Matter Capacity 300 Sight Range 18 Robot Scan Range 14 Terrain Scan Density 10 Armor Coverage 150 Evasion (%) 55 Targeting Accuracy 5 Target Analysis 5 Recoil Reduction 2 Item Schematics ----------------- None Robot Schematics ------------------ None Fabricated ------------ Nothing Alien Tech Used ----------------- None Achievements -------------- None Challenges ------------ None Game ------ Seed ModifiedGuidancePod Manual? 0 Play Time 00:28:35 Cumulative 10.3 hours Start 2024.12.19 @ 13:59:41 End 2024.12.19 @ 14:27:41 Sessions 1 Manual Loads 0 Difficulty Rogue Special Mode None Game No. 14 Rogue 14 Adventurer 0 Explorer 0 Win Type - Total 0 Types 0/0/0/0/0/0/0/0/0 Lore% 13 Gallery% 14 Achievement% 15 Wizard Run 0 Options --------- Layout 0 ASCII 0 Keyboard 0 Movement Mouse Keybinds 0 Fullscreen 1 Font 24/Smallcaps Map View 76x50 Zoom Use 0% Tactical HUD 1 Map Filters NONE Filters NONE Steam 1 RUN: a1db0592-0f13-48d5-93a6-ccbbbba2d469